[Event "33rd Croatian Junior League 2024"]
[Site "Novalja"]
[Date "2024.04.02"]
[Round "1.9"]
[White "Sundac, Ivano"]
[Black "Horcicka, Jan"]
[Result "1/2-1/2"]
[ECO "D02"]
[WhiteElo "2066"]
[BlackElo "2090"]
[Annotator "RC"]
[PlyCount "69"]
[EventDate "2024.03.28"]
[EventType "team-tourn"]
[EventCountry "CRO"]
[SourceTitle "playchess.com"]
[Source "ChessBase"]
[SourceQuality "1"]
[TimeControl "5400+30"]

1. d4 {[%emt 0:00:02]} d5 {[%emt 0:00:05]} 2. Nf3 {[%emt 0:00:04]} e6 {[%emt 0:00:23]} 3. Bf4 {[%emt 0:00:15]} c5 {[%emt 0:00:29]} 4. e3 {[%emt 0:00:17]} Nf6 {[%emt 0:00:08]} 5. Nbd2 {[%emt 0:01:21]} Nc6 {[%emt 0:00:06]} 6. c3 {[%emt 0:01:10]} Bd6 {[%emt 0:00:11]} 7. Bg3 {[%emt 0:02:14]} O-O {[%emt 0:00:10]} 8. Bd3 {[%emt 0:00:27]} b6 {[%emt 0:08:35]} 9. Ne5 {[%emt 0:02:07]} Qc7 {[%emt 0:52:04]} 10. f4 {[%emt 0:02:19]} a5 {[%emt 0:00:12]} 11. Qe2 {[%emt 0:07:43]} Nb8 {[%emt 0:00:40]} 12. O-O {[%emt 0:03:06]} g6 {[%emt 0:01:00]} 13. Bh4 {[%emt 0:01:16]} Be7 {[%emt 0:00:14]} 14. Rac1 {[%emt 0:01:59]} Ba6 {[%emt 0:00:18]} 15. Bxa6 {[%emt 0:02:47]} Nxa6 {[%emt 0:02:18]} 16. Qb5 {[%emt 0:01:09]} Nb8 {[%emt 0:15:39]} 17. c4 {[%emt 0:02:37]} Qd8 {[%emt 0:07:09]} 18. Bxf6 {[%emt 0:01:33]} Bxf6 {[%emt 0:00:04]} 19. dxc5 {[%emt 0:00:15]} Bxe5 {[%emt 0:02:24]} 20. fxe5 {[%emt 0:00:04]} Qg5 {[%emt 0:00:31]} 21. cxb6 {[%emt 0:01:14]} Qxe3+ {[%emt 0:00:08]} 22. Rf2 {[%emt 0:00:03]} dxc4 {[%emt 0:01:08]} 23. Rcf1 {[%emt 0:00:58]} Na6 {[%emt 0:07:33]} 24. Nxc4 {[%emt 0:01:10]} Qd4 {[%emt 0:00:02]} 25. Nxa5 {[%emt 0:00:36]} Nb4 {[%emt 0:00:58]} 26. Nb3 {[%emt 0:00:37]} Qe4 {[%emt 0:00:30]} 27. Nd2 {[%emt 0:01:00]} Qd4 {[%emt 0:00:05]} 28. Nf3 {[%emt 0:00:51]} Qe4 {[%emt 0:00:01]} 29. Re1 {[%emt 0:00:30]} Qg4 {[%emt 0:00:40]} 30. h3 {[%emt 0:01:19]} Qf4 {[%emt 0:00:05]} 31. Nd2 {[%emt 0:00:30]} Qd4 {[%emt 0:00:14]} 32. Re4 {[%emt 0:00:20]} Qxb2 {[%emt 0:00:13]} 33. Rxb4 {[%emt 0:00:12]} Qa1+ {[%emt 0:00:54]} 34. Rb1 {[%emt 0:00:22]} Qxa2 {[%emt 0:00:24]} 35. Nc4 {[%emt 0:00:18]} 1/2-1/2

[Event "33rd Croatian Junior League 2024"]
[Site "Novalja"]
[Date "2024.04.02"]
[Round "1.10"]
[White "Zadro, Matej"]
[Black "Tomljanovic, Ivano"]
[Result "0-1"]
[ECO "B13"]
[WhiteElo "1924"]
[BlackElo "2013"]
[Annotator "RC"]
[PlyCount "132"]
[EventDate "2024.03.28"]
[EventType "team-tourn"]
[EventCountry "CRO"]
[SourceTitle "playchess.com"]
[Source "ChessBase"]
[SourceQuality "1"]
[TimeControl "5400+30"]

1. e4 {[%emt 0:00:12]} c6 {[%emt 0:00:32]} 2. d4 {[%emt 0:00:02]} d5 {[%emt 0:00:18]} 3. exd5 {[%emt 0:00:07]} cxd5 {[%emt 0:00:22]} 4. c4 {[%emt 0:00:03]} Nf6 {[%emt 0:03:41]} 5. Nc3 {[%emt 0:00:09]} Nc6 {[%emt 0:03:50]} 6. Bg5 {[%emt 0:00:08]} dxc4 {[%emt 0:11:59]} 7. Bxc4 {[%emt 0:00:45]} Qb6 {[%emt 0:22:30]} 8. Nge2 {[%emt 0:26:22]} Bg4 {[%emt 0:03:11]} 9. d5 {[%emt 0:06:21]} Ne5 {[%emt 0:04:50]} 10. Bb5+ {[%emt 0:02:25]} Bd7 {[%emt 0:03:50]} 11. Bxd7+ {[%emt 0:10:33]} Nexd7 {[%emt 0:12:17]} 12. O-O {[%emt 0:12:27]} g6 {[%emt 0:02:22]} 13. Bxf6 {[%emt 0:07:19]} Qxf6 {[%emt 0:03:19]} 14. Ne4 {[%emt 0:12:03]} Qb6 {[%emt 0:01:09]} 15. d6 {[%emt 0:08:39]} e6 {[%emt 0:03:41]} 16. Rc1 {[%emt 0:02:49]} Qb4 {[%emt 0:04:23]} 17. N2c3 {[%emt 0:04:18]} Bg7 {[%emt 0:01:08]} 18. a3 {[%emt 0:00:06]} Qb6 {[%emt 0:07:07]} 19. Na4 {[%emt 0:00:24]} Qd4 {[%emt 0:00:17]} 20. Qxd4 {[%emt 0:00:05]} Bxd4 {[%emt 0:00:24]} 21. Rfd1 {[%emt 0:00:01]} e5 {[%emt 0:01:09]} 22. Rc7 {[%emt 0:00:30]} b6 {[%emt 0:05:18]} 23. Nac3 {[%emt 0:01:04]} Bxc3 {[%emt 0:02:29]} 24. Nxc3 {[%emt 0:00:34]} a5 {[%emt 0:00:43]} 25. Nd5 {[%emt 0:01:53]} Rd8 {[%emt 0:01:30]} 26. g3 {[%emt 0:01:37]} f5 {[%emt 0:00:11]} 27. Rb7 {[%emt 0:00:04]} Kf7 {[%emt 0:00:36]} 28. Nxb6 {[%emt 0:00:06]} Ke6 {[%emt 0:00:10]} 29. Nc4 {[%emt 0:00:39]} a4 {[%emt 0:01:01]} 30. Rb5 {[%emt 0:03:10]} e4 {[%emt 0:00:41]} 31. Kf1 {[%emt 0:00:09]} Rb8 {[%emt 0:00:18]} 32. Ra5 {[%emt 0:00:46]} Ra8 {[%emt 0:00:01]} 33. Rad5 {[%emt 0:00:25]} Rhc8 {[%emt 0:00:28]} 34. R5d4 {[%emt 0:00:40]} Rab8 {[%emt 0:00:30]} 35. R1d2 {[%emt 0:00:12]} Nc5 {[%emt 0:00:42]} 36. d7 {[%emt 0:00:11]} Rd8 {[%emt 0:00:55]} 37. Rd6+ {[%emt 0:00:35]} Ke7 {[%emt 0:00:04]} 38. R2d5 {[%emt 0:01:06]} Nb7 {[%emt 0:00:32]} 39. Ra6 {[%emt 0:00:28]} Rxd7 {[%emt 0:00:44]} 40. Rxd7+ {[%emt 0:00:20]} Kxd7 {[%emt 0:00:02]} 41. Rxa4 {[%emt 0:00:01]} Kc6 {[%emt 0:00:57]} 42. Rb4 {[%emt 0:00:34]} Rd8 {[%emt 0:00:21]} 43. Ke2 {[%emt 0:00:35]} Nc5 {[%emt 0:00:24]} 44. Rb6+ {[%emt 0:00:44]} Kd5 {[%emt 0:01:03]} 45. b3 {[%emt 0:00:10]} Ne6 {[%emt 0:00:27]} 46. Rb7 {[%emt 0:01:03]} Nd4+ {[%emt 0:00:23]} 47. Kf1 {[%emt 0:00:23]} h6 {[%emt 0:00:33]} 48. a4 {[%emt 0:00:20]} Kc5 {[%emt 0:00:27]} 49. Ne5 {[%emt 0:00:21]} g5 {[%emt 0:00:38]} 50. Nf7 {[%emt 0:00:51]} Re8 {[%emt 0:00:23]} 51. a5 {[%emt 0:00:20]} f4 {[%emt 0:00:29]} 52. b4+ {[%emt 0:00:22]} Kc6 {[%emt 0:00:32]} 53. Rb6+ {[%emt 0:00:31]} Kc7 {[%emt 0:00:22]} 54. Nd6 {[%emt 0:00:09]} Re5 {[%emt 0:00:40]} 55. Nc4 {[%emt 0:00:20]} Re8 {[%emt 0:00:30]} 56. Nd6 {[%emt 0:01:01]} Re5 {[%emt 0:00:20]} 57. Nc4 {[%emt 0:00:02]} Re8 {[%emt 0:00:14]} 58. gxf4 {[%emt 0:00:12]} gxf4 {[%emt 0:00:11]} 59. Nd6 {[%emt 0:00:02]} Re5 {[%emt 0:00:41]} 60. Nc4 {[%emt 0:00:22]} Re8 {[%emt 0:01:02]} 61. Rd6 {[%emt 0:02:12]} Nc2 {[%emt 0:00:36]} 62. Rxh6 {[%emt 0:00:34]} Nxb4 {[%emt 0:00:20]} 63. Rf6 {[%emt 0:00:31]} e3 {[%emt 0:00:27]} 64. fxe3 {[%emt 0:00:19]} fxe3 {[%emt 0:00:02]} 65. Ke2 {[%emt 0:00:35]} Rh8 {[%emt 0:01:02]} 66. Kxe3 {[%emt 0:00:31]} Nd5+ {[%emt 0:00:11]} 0-1

[Event "33rd Croatian Junior League 2024"]
[Site "Novalja"]
[Date "2024.04.02"]
[Round "1.11"]
[White "Ivancic, Ivan"]
[Black "Domovic, Ognjen"]
[Result "0-1"]
[ECO "B78"]
[WhiteElo "1995"]
[BlackElo "1973"]
[Annotator "RC"]
[PlyCount "142"]
[EventDate "2024.03.28"]
[EventType "team-tourn"]
[EventCountry "CRO"]
[SourceTitle "playchess.com"]
[Source "ChessBase"]
[SourceQuality "1"]
[TimeControl "5400+30"]

1. e4 {[%emt 0:00:04]} c5 {[%emt 0:00:26]} 2. Nf3 {[%emt 0:00:12]} d6 {[%emt 0:00:07]} 3. d4 {[%emt 0:00:31]} cxd4 {[%emt 0:00:17]} 4. Nxd4 {[%emt 0:00:10]} Nf6 {[%emt 0:00:08]} 5. Nc3 {[%emt 0:00:15]} g6 {[%emt 0:00:19]} 6. Be3 {[%emt 0:00:21]} Bg7 {[%emt 0:00:05]} 7. f3 {[%emt 0:00:37]} O-O {[%emt 0:00:10]} 8. Qd2 {[%emt 0:00:08]} Nc6 {[%emt 0:00:06]} 9. Bc4 {[%emt 0:01:05]} Bd7 {[%emt 0:00:07]} 10. O-O-O {[%emt 0:00:21]} Rb8 {[%emt 0:00:11]} 11. g4 {[%emt 0:08:03]} b5 {[%emt 0:00:08]} 12. Bb3 {[%emt 0:08:46]} Na5 {[%emt 0:10:09]} 13. Kb1 {[%emt 0:02:07]} Nc4 {[%emt 0:04:23]} 14. Bxc4 {[%emt 0:00:31]} bxc4 {[%emt 0:00:06]} 15. Ka1 {[%emt 0:01:41]} Qa5 {[%emt 0:10:13]} 16. h4 {[%emt 0:23:11]} Rfd8 {[%emt 0:20:35]} 17. h5 {[%emt 0:05:31]} e5 {[%emt 0:01:48]} 18. Nde2 {[%emt 0:19:39]} Be6 {[%emt 0:09:48]} 19. hxg6 {[%emt 0:02:17]} fxg6 {[%emt 0:02:20]} 20. Bh6 {[%emt 0:04:31]} Qb6 {[%emt 0:06:03]} 21. Rb1 {[%emt 0:00:49]} Bh8 {[%emt 0:00:40]} 22. Bg5 {[%emt 0:02:12]} Rd7 {[%emt 0:03:37]} 23. Bxf6 {[%emt 0:00:56]} Bxf6 {[%emt 0:00:35]} 24. Nd5 {[%emt 0:00:09]} Qd8 {[%emt 0:01:35]} 25. Nec3 {[%emt 0:02:17]} Bg5 {[%emt 0:02:03]} 26. Qe2 {[%emt 0:01:41]} Qc8 {[%emt 0:01:49]} 27. Ne3 {[%emt 0:04:08]} Qc5 {[%emt 0:00:55]} 28. Ncd5 {[%emt 0:01:00]} Rdb7 {[%emt 0:08:22]} 29. c3 {[%emt 0:02:02]} Rc8 {[%emt 0:01:34]} 30. Rhf1 {[%emt 0:01:57]} Rf7 {[%emt 0:00:51]} 31. Rbd1 {[%emt 0:01:40]} a5 {[%emt 0:00:50]} 32. Ng2 {[%emt 0:03:06]} Rcf8 {[%emt 0:00:51]} 33. Nge3 {[%emt 0:01:12]} Rc8 {[%emt 0:00:14]} 34. Ng2 {[%emt 0:00:18]} Rcf8 {[%emt 0:13:27]} 35. Nge3 {[%emt 0:00:11]} Bxe3 {[%emt 0:00:08]} 36. Nxe3 {[%emt 0:00:59]} Rb8 {[%emt 0:01:25]} 37. Nd5 {[%emt 0:01:19]} Kg7 {[%emt 0:00:17]} 38. Rd2 {[%emt 0:02:04]} Rbf8 {[%emt 0:01:15]} 39. g5 {[%emt 0:01:26]} Bxd5 {[%emt 0:01:11]} 40. Rxd5 {[%emt 0:00:03]} Qb6 {[%emt 0:00:46]} 41. Qd1 {[%emt 0:00:59]} Rb8 {[%emt 0:00:21]} 42. Qd2 {[%emt 0:00:17]} Rd7 {[%emt 0:00:33]} 43. f4 {[%emt 0:00:38]} exf4 {[%emt 0:00:35]} 44. Rxf4 {[%emt 0:00:33]} Qg1+ {[%emt 0:00:22]} 45. Qd1 {[%emt 0:00:05]} Qh2 {[%emt 0:00:33]} 46. Qd4+ {[%emt 0:00:47]} Kg8 {[%emt 0:00:19]} 47. Qf2 {[%emt 0:00:22]} Qh1+ {[%emt 0:00:50]} 48. Qf1 {[%emt 0:00:05]} Qxf1+ {[%emt 0:00:29]} 49. Rxf1 {[%emt 0:00:06]} Re8 {[%emt 0:00:33]} 50. Rxa5 {[%emt 0:01:34]} Rxe4 {[%emt 0:00:17]} 51. Rd5 {[%emt 0:00:18]} Re2 {[%emt 0:00:31]} 52. Rfd1 {[%emt 0:00:26]} Rb7 {[%emt 0:00:35]} 53. Rxd6 {[%emt 0:00:37]} Rbxb2 {[%emt 0:00:35]} 54. Rd8+ {[%emt 0:00:39]} Kf7 {[%emt 0:00:20]} 55. R8d7+ {[%emt 0:00:19]} Ke6 {[%emt 0:00:25]} 56. Rxh7 {[%emt 0:00:42]} Rxa2+ {[%emt 0:00:17]} 57. Kb1 {[%emt 0:00:08]} Rab2+ {[%emt 0:00:12]} 58. Ka1 {[%emt 0:00:13]} Ra2+ {[%emt 0:00:02]} 59. Kb1 {[%emt 0:00:06]} Reb2+ {[%emt 0:01:13]} 60. Kc1 {[%emt 0:00:08]} Rc2+ {[%emt 0:00:33]} 61. Kb1 {[%emt 0:00:04]} Rab2+ {[%emt 0:00:24]} 62. Ka1 {[%emt 0:00:06]} Ra2+ {[%emt 0:00:32]} 63. Kb1 {[%emt 0:00:04]} Rab2+ {[%emt 0:00:02]} 64. Ka1 {[%emt 0:00:04]} Rb5 {[%emt 0:00:38]} 65. Rc7 {[%emt 0:03:08]} Rxc3 {[%emt 0:00:28]} 66. Rc6+ {[%emt 0:00:12]} Kf5 {[%emt 0:00:35]} 67. Rf1+ {[%emt 0:00:20]} Kxg5 {[%emt 0:00:14]} 68. Rg1+ {[%emt 0:00:07]} Kf5 {[%emt 0:00:59]} 69. Rf1+ {[%emt 0:00:27]} Ke5 {[%emt 0:00:37]} 70. Ka2 {[%emt 0:00:26]} Ra5+ {[%emt 0:00:39]} 71. Kb2 {[%emt 0:00:35]} Rb3+ {[%emt 0:00:16]} 0-1

[Event "33rd Croatian Junior League 2024"]
[Site "Novalja"]
[Date "2024.04.02"]
[Round "1.12"]
[White "Martic, Ivan"]
[Black "Hajdinic, Ema"]
[Result "0-1"]
[ECO "A45"]
[WhiteElo "2300"]
[BlackElo "1884"]
[Annotator "RC"]
[PlyCount "106"]
[EventDate "2024.03.28"]
[EventType "team-tourn"]
[EventCountry "CRO"]
[SourceTitle "playchess.com"]
[Source "ChessBase"]
[SourceQuality "1"]
[TimeControl "5400+30"]

1. d4 {[%emt 0:00:03]} Nf6 {[%emt 0:00:20]} 2. Bf4 {[%emt 0:00:06]} c6 {[%emt 0:00:33]} 3. c3 {[%emt 0:00:56]} d6 {[%emt 0:01:32]} 4. e3 {[%emt 0:00:57]} Qb6 {[%emt 0:01:36]} 5. Qb3 {[%emt 0:03:54]} Nh5 {[%emt 0:02:04]} 6. Bg3 {[%emt 0:01:23]} Nxg3 {[%emt 0:00:34]} 7. hxg3 {[%emt 0:00:01]} Bf5 {[%emt 0:01:13]} 8. Nf3 {[%emt 0:01:13]} Nd7 {[%emt 0:02:51]} 9. Nbd2 {[%emt 0:02:07]} e5 {[%emt 0:04:46]} 10. e4 {[%emt 0:20:58]} Be6 {[%emt 0:09:51]} 11. Bc4 {[%emt 0:09:48]} Qxb3 {[%emt 0:07:36]} 12. Bxb3 {[%emt 0:06:13]} exd4 {[%emt 0:10:17]} 13. Nxd4 {[%emt 0:09:52]} Nc5 {[%emt 0:03:27]} 14. Bc2 {[%emt 0:05:12]} Be7 {[%emt 0:03:00]} 15. O-O {[%emt 0:05:44]} h5 {[%emt 0:03:34]} 16. N2f3 {[%emt 0:07:12]} g5 {[%emt 0:02:35]} 17. Nxe6 {[%emt 0:05:09]} Nxe6 {[%emt 0:00:49]} 18. Rad1 {[%emt 0:06:39]} O-O-O {[%emt 0:01:38]} 19. Nd4 {[%emt 0:01:28]} Nxd4 {[%emt 0:00:27]} 20. Rxd4 {[%emt 0:00:59]} h4 {[%emt 0:00:58]} 21. Bd1 {[%emt 0:02:11]} Rh6 {[%emt 0:00:57]} 22. Bg4+ {[%emt 0:02:43]} Kc7 {[%emt 0:00:32]} 23. Rd3 {[%emt 0:01:08]} hxg3 {[%emt 0:00:54]} 24. Rxg3 {[%emt 0:01:25]} Rh4 {[%emt 0:04:44]} 25. Rd1 {[%emt 0:04:42]} d5 {[%emt 0:02:40]} 26. f3 {[%emt 0:00:53]} Bc5+ {[%emt 0:00:32]} 27. Kf1 {[%emt 0:00:08]} Rh1+ {[%emt 0:00:13]} 28. Ke2 {[%emt 0:00:04]} Rxd1 {[%emt 0:00:25]} 29. Kxd1 {[%emt 0:00:06]} dxe4+ {[%emt 0:00:05]} 30. Ke1 {[%emt 0:01:37]} e3 {[%emt 0:03:07]} 31. b4 {[%emt 0:00:10]} Bd6 {[%emt 0:01:47]} 32. Rh3 {[%emt 0:00:17]} Rf8 {[%emt 0:00:41]} 33. Rh7 {[%emt 0:00:38]} Kb6 {[%emt 0:00:05]} 34. Bf5 {[%emt 0:00:33]} Be5 {[%emt 0:00:41]} 35. Ke2 {[%emt 0:00:46]} Bxc3 {[%emt 0:00:08]} 36. Kxe3 {[%emt 0:00:33]} Bxb4 {[%emt 0:00:03]} 37. Rg7 {[%emt 0:00:30]} Be7 {[%emt 0:00:47]} 38. Kd3 {[%emt 0:00:35]} Kc5 {[%emt 0:00:21]} 39. Kc2 {[%emt 0:00:28]} Bf6 {[%emt 0:00:16]} 40. Rh7 {[%emt 0:00:09]} b5 {[%emt 0:00:30]} 41. Be4 {[%emt 0:00:32]} Be5 {[%emt 0:00:28]} 42. g4 {[%emt 0:00:46]} a5 {[%emt 0:00:39]} 43. Kb3 {[%emt 0:00:34]} a4+ {[%emt 0:00:14]} 44. Kc2 {[%emt 0:00:15]} Kb4 {[%emt 0:01:18]} 45. Rh3 {[%emt 0:00:51]} c5 {[%emt 0:00:17]} 46. Bd5 {[%emt 0:00:29]} Bf4 {[%emt 0:01:16]} 47. Be4 {[%emt 0:00:31]} Rd8 {[%emt 0:00:11]} 48. Rh1 {[%emt 0:00:24]} Rd2+ {[%emt 0:00:04]} 49. Kb1 {[%emt 0:00:05]} Ka3 {[%emt 0:00:22]} 50. Bc2 {[%emt 0:00:54]} b4 {[%emt 0:00:44]} 51. Re1 {[%emt 0:00:37]} b3 {[%emt 0:00:12]} 52. Re3 {[%emt 0:00:31]} Bxe3 {[%emt 0:00:28]} 53. axb3 {[%emt 0:00:09]} axb3 {[%emt 0:00:14]} 0-1

[Event "33rd Croatian Junior League 2024"]
[Site "Novalja"]
[Date "2024.04.02"]
[Round "2.1"]
[White "Gal, Andrej"]
[Black "Novosel, Lovro"]
[Result "1/2-1/2"]
[ECO "A14"]
[WhiteElo "2274"]
[BlackElo "2348"]
[Annotator "RC"]
[PlyCount "144"]
[EventDate "2024.03.28"]
[EventType "team-tourn"]
[EventCountry "CRO"]
[SourceTitle "playchess.com"]
[Source "ChessBase"]
[SourceQuality "1"]
[TimeControl "5400+30"]

1. d4 {[%emt 0:00:01]} Nf6 {[%emt 0:00:14]} 2. c4 {[%emt 0:00:05]} e6 {[%emt 0:00:10]} 3. Nf3 {[%emt 0:00:05]} d5 {[%emt 0:00:14]} 4. g3 {[%emt 0:00:10]} Be7 {[%emt 0:00:30]} 5. Bg2 {[%emt 0:00:06]} O-O {[%emt 0:00:18]} 6. Nc3 {[%emt 0:00:09]} c6 {[%emt 0:00:45]} 7. O-O {[%emt 0:00:44]} a5 {[%emt 0:00:50]} 8. b3 {[%emt 0:00:13]} b6 {[%emt 0:00:35]} 9. Bb2 {[%emt 0:02:04]} Ba6 {[%emt 0:00:05]} 10. Nd2 {[%emt 0:01:11]} b5 {[%emt 0:00:20]} 11. c5 {[%emt 0:00:05]} b4 {[%emt 0:01:04]} 12. Na4 {[%emt 0:00:41]} Nbd7 {[%emt 0:00:48]} 13. Re1 {[%emt 0:01:48]} Bb5 {[%emt 0:03:49]} 14. Qc2 {[%emt 0:00:58]} Qc7 {[%emt 0:02:53]} 15. e4 {[%emt 0:01:00]} dxe4 {[%emt 0:05:40]} 16. Nxe4 {[%emt 0:00:07]} Bxa4 {[%emt 0:00:17]} 17. bxa4 {[%emt 0:01:06]} Nxe4 {[%emt 0:00:06]} 18. Bxe4 {[%emt 0:00:50]} Nf6 {[%emt 0:00:16]} 19. Bd3 {[%emt 0:05:33]} g6 {[%emt 0:08:19]} 20. h4 {[%emt 0:03:43]} Rfd8 {[%emt 0:03:06]} 21. Rad1 {[%emt 0:04:45]} Bf8 {[%emt 0:04:20]} 22. Be2 {[%emt 0:25:32]} Bg7 {[%emt 0:07:48]} 23. Kg2 {[%emt 0:01:37]} h5 {[%emt 0:06:36]} 24. Bf3 {[%emt 0:02:07]} Rd7 {[%emt 0:02:39]} 25. Rd3 {[%emt 0:05:21]} Nd5 {[%emt 0:01:31]} 26. Red1 {[%emt 0:01:18]} Rad8 {[%emt 0:06:44]} 27. Qc4 {[%emt 0:03:51]} Qb7 {[%emt 0:19:54]} 28. Be4 {[%emt 0:04:11]} Ra8 {[%emt 0:08:03]} 29. Rb3 {[%emt 0:05:13]} Qa6 {[%emt 0:06:44]} 30. Qc2 {[%emt 0:00:49]} Rad8 {[%emt 0:01:19]} 31. Bd3 {[%emt 0:01:59]} Qa7 {[%emt 0:00:48]} 32. Be4 {[%emt 0:00:53]} Ne7 {[%emt 0:00:13]} 33. Qc4 {[%emt 0:00:37]} Qa8 {[%emt 0:05:00]} 34. Rbd3 {[%emt 0:04:10]} Nf5 {[%emt 0:01:49]} 35. R1d2 {[%emt 0:02:51]} Qb7 {[%emt 0:00:22]} 36. Rd1 {[%emt 0:00:40]} Ne7 {[%emt 0:01:10]} 37. Rb3 {[%emt 0:02:28]} Qa7 {[%emt 0:01:09]} 38. Rbd3 {[%emt 0:00:31]} Kh7 {[%emt 0:00:25]} 39. R1d2 {[%emt 0:01:01]} Ra8 {[%emt 0:00:48]} 40. Rb3 {[%emt 0:01:16]} f5 {[%emt 0:00:27]} 41. Bf3 {[%emt 0:01:27]} e5 {[%emt 0:00:06]} 42. Be2 {[%emt 0:03:42]} Rad8 {[%emt 0:00:39]} 43. Rbd3 {[%emt 0:01:43]} e4 {[%emt 0:00:05]} 44. Rb3 {[%emt 0:00:04]} Rd5 {[%emt 0:00:03]} 45. Rd1 {[%emt 0:03:49]} Qc7 {[%emt 0:00:49]} 46. Qc2 {[%emt 0:01:15]} R5d7 {[%emt 0:02:51]} 47. Bc4 {[%emt 0:01:18]} Nd5 {[%emt 0:00:28]} 48. f3 {[%emt 0:01:23]} exf3+ {[%emt 0:00:47]} 49. Rxf3 {[%emt 0:00:01]} Nf6 {[%emt 0:00:28]} 50. Bd3 {[%emt 0:04:48]} Re7 {[%emt 0:00:28]} 51. Bc1 {[%emt 0:01:01]} Kh8 {[%emt 0:00:13]} 52. Bf4 {[%emt 0:00:14]} Qd7 {[%emt 0:00:11]} 53. Bd6 {[%emt 0:00:30]} Ree8 {[%emt 0:00:17]} 54. Rd2 {[%emt 0:01:28]} Ne4 {[%emt 0:00:32]} 55. Bxe4 {[%emt 0:00:30]} Rxe4 {[%emt 0:00:07]} 56. Rf4 {[%emt 0:00:26]} Rxf4 {[%emt 0:00:36]} 57. gxf4 {[%emt 0:00:08]} Qe6 {[%emt 0:00:17]} 58. Qd1 {[%emt 0:01:25]} Qc4 {[%emt 0:01:20]} 59. Be5 {[%emt 0:01:14]} Bxe5 {[%emt 0:00:57]} 60. fxe5 {[%emt 0:00:01]} Kg7 {[%emt 0:00:31]} 61. Kh2 {[%emt 0:01:34]} Kf7 {[%emt 0:00:15]} 62. Qb3 {[%emt 0:00:45]} Qd5 {[%emt 0:00:50]} 63. Kg3 {[%emt 0:00:18]} Ke7 {[%emt 0:00:30]} 64. Qxd5 {[%emt 0:00:44]} Rxd5 {[%emt 0:00:00]} 65. Kf4 {[%emt 0:00:01]} Rd8 {[%emt 0:00:15]} 66. Kg5 {[%emt 0:00:11]} Rg8 {[%emt 0:00:02]} 67. Rg2 {[%emt 0:01:06]} Ke6 {[%emt 0:00:16]} 68. Rd2 {[%emt 0:00:23]} Kf7 {[%emt 0:01:55]} 69. Re2 {[%emt 0:00:46]} Rd8 {[%emt 0:00:23]} 70. Rd2 {[%emt 0:00:17]} Re8 {[%emt 0:00:36]} 71. Re2 {[%emt 0:00:29]} Rd8 {[%emt 0:00:18]} 72. Rd2 {[%emt 0:00:28]} Re8 {[%emt 0:00:42]} 1/2-1/2

[Event "33rd Croatian Junior League 2024"]
[Site "Novalja"]
[Date "2024.04.02"]
[Round "2.2"]
[White "Karlusic, Luka"]
[Black "Franc, Borna"]
[Result "1-0"]
[ECO "E06"]
[WhiteElo "2232"]
[BlackElo "2221"]
[Annotator "RC"]
[PlyCount "61"]
[EventDate "2024.03.28"]
[EventType "team-tourn"]
[EventCountry "CRO"]
[SourceTitle "playchess.com"]
[Source "ChessBase"]
[SourceQuality "1"]
[TimeControl "5400+30"]

1. d4 {[%emt 0:00:07]} Nf6 {[%emt 0:00:02]} 2. c4 {[%emt 0:00:08]} e6 {[%emt 0:00:05]} 3. Nf3 {[%emt 0:00:26]} d5 {[%emt 0:00:11]} 4. g3 {[%emt 0:00:41]} Be7 {[%emt 0:00:05]} 5. Bg2 {[%emt 0:00:06]} O-O {[%emt 0:00:04]} 6. O-O {[%emt 0:00:17]} c6 {[%emt 0:00:04]} 7. Qc2 {[%emt 0:00:30]} b6 {[%emt 0:00:39]} 8. Rd1 {[%emt 0:00:32]} Bb7 {[%emt 0:00:25]} 9. b3 {[%emt 0:01:15]} Qc8 {[%emt 0:06:19]} 10. Nc3 {[%emt 0:05:57]} c5 {[%emt 0:03:35]} 11. cxd5 {[%emt 0:02:46]} exd5 {[%emt 0:05:36]} 12. dxc5 {[%emt 0:16:48]} Bxc5 {[%emt 0:10:36]} 13. Bb2 {[%emt 0:08:34]} Nc6 {[%emt 0:20:47]} 14. e3 {[%emt 0:07:34]} Nb4 {[%emt 0:02:16]} 15. Qb1 {[%emt 0:05:07]} Rd8 {[%emt 0:08:20]} 16. a3 {[%emt 0:06:13]} Nc6 {[%emt 0:00:10]} 17. b4 {[%emt 0:03:13]} Be7 {[%emt 0:00:07]} 18. Qd3 {[%emt 0:05:38]} Qe6 {[%emt 0:04:45]} 19. Nb5 {[%emt 0:10:32]} Qe4 {[%emt 0:02:33]} 20. Qxe4 {[%emt 0:05:46]} dxe4 {[%emt 0:02:18]} 21. Ng5 {[%emt 0:00:45]} a5 {[%emt 0:06:31]} 22. Nxe4 {[%emt 0:01:23]} axb4 {[%emt 0:00:45]} 23. Ned6 {[%emt 0:03:53]} bxa3 {[%emt 0:00:07]} 24. Bxa3 {[%emt 0:01:41]} Rxa3 {[%emt 0:01:41]} 25. Rxa3 {[%emt 0:07:09]} Ne8 {[%emt 0:00:07]} 26. Rc3 {[%emt 0:01:38]} Na5 {[%emt 0:01:39]} 27. Rcd3 {[%emt 0:01:34]} Ba6 {[%emt 0:00:22]} 28. Rd4 {[%emt 0:01:35]} Nb3 {[%emt 0:24:21]} 29. Nf5 {[%emt 0:01:26]} Nxd4 {[%emt 0:00:00]} 30. Nxe7+ {[%emt 0:00:05]} Kf8 {[%emt 0:00:00]} 31. Nxd4 {[%emt 0:00:08]} 1-0